bitfinex/quotes_BTCUSD_20250123
["timestamp","ask_amount","ask_price","bid_price","bid_amount"]
[1737600902403,0.1954337,102500.0,102490.0,1.15317292]
[1737600902813,0.1954337,102500.0,102490.0,1.15417292]
[1737600903016,0.1759217,102500.0,102490.0,1.15317292]
[1737600903175,0.0978737,102500.0,102490.0,1.15317292]
[1737600903381,0.0978737,102500.0,102490.0,1.15417292]
[1737600904609,0.0978737,102500.0,102490.0,1.16268482]
[1737600904805,0.09359396,102500.0,102490.0,1.16268482]
[1737600905027,0.09359396,102500.0,102490.0,1.16368482]
[1737600905430,0.09359396,102500.0,102490.0,1.0541064]
[1737600905820,0.09359396,102500.0,102490.0,1.16368482]
[1737600906063,0.09359396,102500.0,102490.0,1.0541064]
[1737600908162,0.09359396,102500.0,102490.0,1.05334094]
[1737600909465,0.09359396,102500.0,102490.0,0.54034094]
[1737600909644,0.09359396,102500.0,102490.0,4.05594094]
[1737600910169,0.09359396,102500.0,102490.0,3.65514094]
[1737600910310,0.09359396,102500.0,102490.0,2.47914094]
[1737600911351,0.09359396,102500.0,102490.0,2.47943977]
[1737600911555,0.09373626,102500.0,102490.0,2.47943977]
[1737600912313,0.09373626,102500.0,102490.0,0.98613977]
[1737600913968,0.09373626,102500.0,102490.0,0.62629248]
[1737600914180,0.17633626,102500.0,102490.0,0.42029248]
[1737600914386,0.24203626,102500.0,102490.0,0.27029248]
[1737600914540,0.29203626,102500.0,102490.0,0.27029248]
[1737600914738,0.29203626,102500.0,102490.0,0.16071406]
[1737600914945,0.29203626,102500.0,102490.0,0.23127256]
[1737600915160,0.22203626,102500.0,102490.0,0.42029248]
[1737600915362,0.22203626,102500.0,102490.0,0.95323977]
[1737600915728,0.22203626,102500.0,102490.0,0.95223977]
[1737600915932,0.23223626,102500.0,102490.0,0.95223977]
[1737600916324,0.23223626,102500.0,102490.0,0.95323977]
[1737600917054,0.21484503,102500.0,102490.0,0.95323977]
[1737600917262,0.07634503,102500.0,102490.0,0.97623977]
[1737600922256,0.07634503,102500.0,102490.0,0.95323977]
[1737600922655,0.07634503,102500.0,102490.0,0.51763977]
[1737600922858,0.07634503,102500.0,102490.0,5.43953977]
[1737600925682,0.07634503,102500.0,102490.0,5.57211819]
[1737600925890,0.01780903,102500.0,102490.0,5.46253977]
[1737600926081,3e-08,102500.0,102490.0,5.57211819]
[1737600926321,3e-08,102500.0,102490.0,0.65021819]
[1737600926502,0.29270003,102500.0,102490.0,0.54063977]
[1737600926911,0.29270003,102500.0,102490.0,0.65021819]
[1737600927131,0.29270003,102500.0,102490.0,0.54063977]
[1737600927714,0.29270003,102500.0,102490.0,5.46253977]
[1737600928873,0.34250003,102500.0,102490.0,5.17993977]
[1737600929063,0.34250003,102500.0,102490.0,4.48493977]
[1737600930314,0.34250003,102500.0,102490.0,4.46193977]
[1737600933097,0.29270003,102500.0,102490.0,4.48493977]
[1737600933304,0.25367603,102500.0,102490.0,4.59451819]
[1737600934266,0.25381833,102500.0,102490.0,4.59451819]
[1737600934412,0.25381833,102500.0,102490.0,4.48493977]
[1737600934864,0.19528233,102500.0,102490.0,4.48493977]
[1737600935037,0.11723433,102500.0,102490.0,4.48493977]
[1737600935250,0.09772233,102500.0,102490.0,4.48493977]
[1737600935452,0.05869833,102500.0,102490.0,4.59451819]
[1737600935883,0.05869833,102500.0,102490.0,4.48493977]
[1737600936112,0.01967433,102500.0,102490.0,4.48493977]
[1737600936280,0.27318833,102500.0,102490.0,4.59451819]
[1737600936483,0.27318833,102500.0,102490.0,0.65021819]
[1737600936687,0.27318833,102500.0,102490.0,5.57211819]
[1737600936900,0.27318833,102500.0,102490.0,5.46253977]
[1737600937090,0.00698407,102500.0,102490.0,5.64811819]
[1737600937252,0.0001425,102530.0,102520.0,0.270541]
[1737600937455,0.0006463,102530.0,102520.0,5.5577155]
[1737600937740,0.0006463,102530.0,102520.0,5.56212926]
[1737600937951,0.2932563,102530.0,102520.0,5.56212926]
[1737600938126,0.2542443,102530.0,102520.0,5.56212926]
[1737600938308,0.1957263,102530.0,102520.0,5.56212926]
[1737600938835,0.1957263,102530.0,102520.0,5.56312926]
[1737600939039,0.1957263,102530.0,102520.0,5.56212926]
[1737600939358,0.1957263,102530.0,102520.0,5.45355084]
[1737600939684,0.1957263,102530.0,102520.0,5.56312926]
[1737600939879,0.1957263,102530.0,102520.0,5.45355084]
[1737600940086,0.1957263,102530.0,102520.0,5.33320355]
[1737600940306,0.3206263,102530.0,102520.0,2.69450355]
[1737600940507,0.3206263,102530.0,102520.0,2.21840355]
[1737600940800,0.3906263,102530.0,102520.0,0.25688979]
[1737600940997,0.3906263,102530.0,102520.0,0.14631137]
[1737600941468,0.3906263,102530.0,102520.0,0.29731137]
[1737600941642,0.3906263,102530.0,102520.0,0.14731137]
[1737600942054,0.3906263,102530.0,102520.0,0.40588979]
[1737600942406,0.4008263,102530.0,102520.0,0.40588979]
[1737600943146,0.4008263,102530.0,102520.0,0.40688979]
[1737600943552,0.4008263,102530.0,102520.0,0.4164134]
[1737600945220,0.4007863,102530.0,102520.0,0.4164134]
[1737600945616,0.3206263,102530.0,102520.0,2.0646134]
[1737600945817,0.3307863,102530.0,102520.0,2.0646134]
[1737600946173,0.3309286,102530.0,102520.0,2.0646134]
[1737600946727,0.3207686,102530.0,102520.0,2.0646134]
[1737600946933,0.3207686,102530.0,102520.0,1.4815134]
[1737600949374,0.3407686,102530.0,102520.0,1.4815134]
[1737600949777,0.2428686,102530.0,102520.0,1.60186069]
[1737600950799,0.0983386,102530.0,102520.0,1.71043911]
[1737600951222,5.1e-07,102530.0,102520.0,1.71143911]
[1737600951458,0.0001427,102550.0,102540.0,0.270522]
[1737600951578,0.00029378,102550.0,102540.0,5.27511808]
[1737600951979,0.23433478,102550.0,102540.0,5.27511808]
[1737600952238,0.19532878,102550.0,102540.0,5.27511808]
[1737600952595,0.19532878,102550.0,102540.0,5.40143584]
[1737600952822,0.19532878,102550.0,102540.0,5.40243584]
[1737600953025,0.09782378,102550.0,102540.0,5.41917518]
[1737600953228,0.09782378,102550.0,102540.0,5.41786582]
[1737600953428,0.09782378,102550.0,102540.0,5.57543584]
[1737600954185,0.09782378,102550.0,102540.0,5.58986582]
[1737600954380,0.03931478,102550.0,102540.0,5.58986582]
[1737600954606,0.22222982,102570.0,102560.0,0.097503]
[1737600954607,0.14432982,102570.0,102560.0,0.097503]
[1737600954786,0.14432982,102570.0,102560.0,5.42509908]
[1737600955124,0.43682982,102570.0,102560.0,5.55141684]
[1737600955327,0.43682982,102570.0,102560.0,5.5346775]
[1737600955721,0.34966,102570.0,102560.0,5.5346775]
[1737600955923,0.34966,102570.0,102560.0,5.55141684]
[1737600956554,0.42756,102570.0,102560.0,2.52155179]
[1737600957243,0.42756,102570.0,102560.0,2.53143901]
[1737600957450,0.42756,102570.0,102560.0,2.47513901]
[1737600958080,0.42756,102570.0,102560.0,2.25673901]
[1737600958282,0.42756,102570.0,102560.0,1.53353901]
[1737600958687,0.42756,102570.0,102560.0,1.64311743]
[1737600959327,0.4174,102570.0,102560.0,1.53353901]
[1737600959557,0.42756,102570.0,102560.0,1.53353901]
[1737600959686,0.349564,102570.0,102560.0,1.75720406]
[1737600959893,0.330065,102570.0,102560.0,1.75720406]
[1737600960081,0.15467,102570.0,102560.0,1.75720406]
[1737600960998,0.135171,102570.0,102560.0,1.75720406]
[1737600961203,0.076674,102570.0,102560.0,1.75720406]
[1737600961906,0.047015,102570.0,102560.0,1.75720406]
[1737600962128,0.0492084,102580.0,102570.0,0.247494]
[1737600962290,0.0492084,102580.0,102570.0,5.50474854]
[1737600962489,0.3416784,102580.0,102570.0,0.59895785]
[1737600962685,0.3416784,102580.0,102570.0,5.50474854]
[1737600962904,0.3416784,102580.0,102570.0,5.18164854]
[1737600963107,0.3416784,102580.0,102570.0,5.19775785]
[1737600963522,0.3315184,102580.0,102570.0,5.19775785]
[1737600964234,0.3315184,102580.0,102570.0,5.18164854]
[1737600964409,0.194985,102580.0,102570.0,5.18164854]
[1737600965034,0.155995,102580.0,102570.0,5.18164854]
[1737600965366,0.09751,102580.0,102570.0,5.19775785]
[1737600965748,0.09751,102580.0,102570.0,5.18164854]
[1737600965972,0.09751,102580.0,102570.0,5.16279813]
[1737600966174,0.039019,102580.0,102570.0,5.18164854]
[1737600966376,2.5e-05,102580.0,102570.0,5.16279813]
[1737600966952,2.5e-05,102580.0,102570.0,5.18164854]
[1737600967355,0.194986,102580.0,102570.0,5.47410154]
[1737600967682,0.194986,102580.0,102570.0,5.37662054]
[1737600968014,0.175491,102580.0,102570.0,5.37662054]
[1737600968245,0.136497,102580.0,102570.0,5.37662054]
[1737600969009,0.097507,102580.0,102570.0,5.37662054]
[1737600969758,0.019527,102580.0,102570.0,5.38077013]
[1737600969964,0.019527,102580.0,102570.0,5.48192054]
[1737600970169,3.2e-05,102580.0,102570.0,5.48192054]
[1737600970379,0.0826424,102600.0,102580.0,0.539883]
[1737600970592,0.08279345,102600.0,102590.0,0.30440071]
[1737600970870,0.37520345,102600.0,102590.0,5.22630071]
[1737600971214,0.37520345,102600.0,102590.0,5.12895342]
[1737600971415,0.37520345,102600.0,102590.0,2.08465342]
[1737600972233,0.37520345,102600.0,102590.0,1.84463184]
[1737600972478,0.37520345,102600.0,102590.0,1.73505342]
[1737600972631,0.37520345,102600.0,102590.0,1.99463184]
[1737600972844,0.38536345,102600.0,102590.0,1.88505342]
[1737600973051,0.40536345,102600.0,102590.0,0.80335342]
[1737600973407,0.45366345,102600.0,102590.0,0.80335342]
[1737600973586,0.50366345,102600.0,102590.0,0.80335342]
[1737600975269,0.50366345,102600.0,102590.0,0.81295499]
[1737600975658,0.50357472,102600.0,102590.0,0.81295499]
[1737600978200,0.53092201,102600.0,102590.0,0.097475]
[1737600978826,0.53092201,102600.0,102590.0,0.20705342]
[1737600981888,0.53092201,102600.0,102590.0,0.20735204]
[1737600982712,0.52076201,102600.0,102590.0,0.09777362]
[1737600982911,0.53088201,102600.0,102590.0,0.09777362]
[1737600983357,0.55056196,102600.0,102590.0,0.09777362]
[1737600983773,0.55056196,102600.0,102590.0,0.20735204]
[1737600984590,0.48353472,102600.0,102590.0,0.20735204]
[1737600984795,0.50353472,102600.0,102590.0,0.20735204]
[1737600985583,0.48353472,102600.0,102590.0,0.20735204]
[1737600985759,0.50353472,102600.0,102590.0,0.20735204]
[1737600985961,0.48353472,102600.0,102590.0,0.20735204]
[1737600986161,0.50353472,102600.0,102590.0,0.20735204]
[1737600986368,0.45353472,102600.0,102590.0,0.20735204]
[1737600989022,0.50353472,102600.0,102590.0,0.20735204]
[1737600989223,0.45353472,102600.0,102590.0,0.20735204]
[1737600990042,0.45353472,102600.0,102590.0,0.35735204]
[1737600990244,0.30273472,102600.0,102590.0,5.38883046]
[1737600990648,0.30273472,102600.0,102590.0,5.39879438]
[1737600991064,0.29261472,102600.0,102590.0,5.39879438]
[1737600991749,0.21464272,102600.0,102590.0,5.49614167]
[1737600992093,0.09768472,102600.0,102590.0,5.49614167]
[1737600993894,0.07819172,102600.0,102590.0,5.49614167]
[1737600994091,0.00021972,102600.0,102590.0,5.49614167]
[1737600994299,9.2e-07,102600.0,102590.0,5.49614167]
[1737600994527,9.2e-07,102600.0,102590.0,0.57424167]
[1737600994936,0.29241092,102600.0,102590.0,0.57424167]
[1737600995130,0.25342492,102600.0,102590.0,5.49614167]
[1737600997566,0.15595992,102600.0,102590.0,5.49614167]
[1737600998044,0.13646692,102600.0,102590.0,5.49614167]
[1737600998278,0.11697392,102600.0,102590.0,5.49614167]
[1737600999551,0.09748092,102600.0,102590.0,5.49614167]
[1737600999754,0.03900192,102600.0,102590.0,5.50051048]
[1737601000489,0.01950892,102600.0,102590.0,5.50051048]
[1737601000689,1.592e-05,102600.0,102590.0,5.50051048]
[1737601001517,1.592e-05,102600.0,102590.0,4.94651048]
[1737601002923,1.592e-05,102600.0,102590.0,0.57861048]
[1737601003122,1.592e-05,102600.0,102590.0,5.50051048]
[1737601006522,0.00015812,102600.0,102590.0,5.50051048]
[1737601007081,0.00015812,102600.0,102590.0,5.44491048]
[1737601007283,0.00015812,102600.0,102590.0,5.41091048]
[1737601009612,0.00015812,102600.0,102590.0,5.31356319]
[1737601009842,0.04855812,102600.0,102590.0,1.90096319]
[1737601010002,0.04855812,102600.0,102590.0,1.27046319]
[1737601010377,0.12915812,102600.0,102590.0,1.27046319]
[1737601011463,0.12915812,102600.0,102590.0,0.95026319]
[1737601012827,0.12915812,102600.0,102590.0,0.84068477]
[1737601013052,0.12915812,102600.0,102590.0,0.75606319]
[1737601013227,0.14915812,102600.0,102590.0,0.75606319]
[1737601013570,0.14915812,102600.0,102590.0,0.37168477]
[1737601013789,0.14915812,102600.0,102590.0,1.35578477]
[1737601013987,0.14915812,102600.0,102590.0,0.73638477]
[1737601014569,0.15923812,102600.0,102590.0,0.73638477]
[1737601015348,0.15923812,102600.0,102590.0,0.55168477]
[1737601016388,0.28756518,102600.0,102590.0,0.21172085]
[1737601016586,0.23658541,102600.0,102590.0,0.21172085]
[1737601016903,0.23658541,102600.0,102590.0,0.09777362]
[1737601017684,0.23658541,102600.0,102590.0,0.20735204]
[1737601021102,0.24652656,102600.0,102590.0,0.20735204]
[1737601021321,0.23644656,102600.0,102590.0,0.09777362]
[1737601021535,0.12915812,102600.0,102590.0,5.07293046]
[1737601021678,0.00015812,102600.0,102590.0,5.07293046]
[1737601021877,0.02015812,102600.0,102590.0,1.69915204]
[1737601022083,0.00015812,102600.0,102590.0,1.80873046]
[1737601022695,0.00015812,102600.0,102590.0,1.46143046]
[1737601023718,0.02015812,102600.0,102590.0,1.10045204]
[1737601023900,0.02015812,102600.0,102590.0,1.08725204]
[1737601026437,0.00015812,102600.0,102590.0,1.19683046]
[1737601027007,0.00015812,102600.0,102590.0,0.95915204]
[1737601027126,0.00015812,102600.0,102590.0,0.81035204]
[1737601027339,0.02113789,102600.0,102590.0,0.81998366]
[1737601027544,0.02015812,102600.0,102590.0,0.78408366]
[1737601028986,0.14663789,102600.0,102590.0,0.53268366]
[1737601029238,0.14663789,102600.0,102590.0,0.36698366]
[1737601029389,0.14565812,102600.0,102590.0,2.87468366]
[1737601029590,0.09663789,102600.0,102590.0,0.55188366]
[1737601029812,0.14663789,102600.0,102590.0,0.55188366]
[1737601030532,0.09663789,102600.0,102590.0,0.55078366]
[1737601030755,0.14663789,102600.0,102590.0,0.55078366]
[1737601031337,0.09663789,102600.0,102590.0,0.55078366]
[1737601031533,0.14663789,102600.0,102590.0,0.55078366]
[1737601031935,0.14565812,102600.0,102590.0,0.55078366]
[1737601032137,0.00015812,102600.0,102590.0,0.64813095]
[1737601032342,0.00015812,102600.0,102590.0,0.55078366]
[1737601032794,0.01023812,102600.0,102590.0,0.55078366]
[1737601033068,0.01023812,102600.0,102590.0,0.66036208]
[1737601033676,0.01023812,102600.0,102590.0,0.55078366]
[1737601034044,0.01023812,102600.0,102590.0,0.66036208]
[1737601034425,0.00015812,102600.0,102590.0,0.66036208]
[1737601036891,0.00015812,102600.0,102590.0,0.83850937]
[1737601037388,0.00015812,102600.0,102590.0,0.75770937]
[1737601040742,1.2e-07,102600.0,102590.0,0.75770937]
[1737601040965,0.083931,102600.0,102590.0,0.51843817]
[1737601041101,0.0764138,102620.0,102610.0,0.097456]
[1737601041311,0.0764138,102620.0,102610.0,1.36630479]
[1737601041949,0.3687638,102620.0,102610.0,1.36630479]
[1737601042678,0.4187638,102620.0,102610.0,1.00040479]
[1737601043222,0.4187638,102620.0,102610.0,1.15040479]
[1737601043771,0.3687638,102620.0,102610.0,1.15040479]
[1737601045218,0.2924926,102620.0,102610.0,1.3573305]
[1737601045355,0.2924926,102620.0,102610.0,1.4326305]
[1737601047117,0.2924926,102620.0,102610.0,1.3573305]
[1737601047431,0.2924926,102620.0,102610.0,0.6127305]
[1737601047571,0.2924926,102620.0,102610.0,5.5346305]
[1737601048101,0.2924926,102620.0,102610.0,4.5830305]
[1737601048722,0.2924926,102620.0,102610.0,4.1434305]
[1737601049052,0.2924926,102620.0,102610.0,4.0367305]
[1737601049254,0.2924926,102620.0,102610.0,4.04663669]
[1737601049586,0.2924926,102620.0,102610.0,3.9492894]
[1737601049735,0.2932638,102620.0,102610.0,1.9750894]
[1737601050363,0.2932638,102620.0,102610.0,1.86551098]
[1737601050700,0.4693926,102620.0,102610.0,0.26571098]
[1737601051071,0.4693926,102620.0,102610.0,0.41571098]
[1737601052988,0.4794326,102620.0,102610.0,0.41571098]
[1737601055057,0.52677989,102620.0,102610.0,0.25580479]
[1737601055274,0.66722589,102620.0,102610.0,0.00975045]
[1737601055455,0.64722589,102620.0,102610.0,0.00975045]
[1737601056713,0.48018616,102610.0,102600.0,0.40227267]
[1737601056838,0.86988345,102610.0,102600.0,0.40227267]
[1737601058596,0.96733945,102610.0,102600.0,0.20734167]
[1737601058801,0.96733945,102610.0,102600.0,0.10987767]
[1737601059028,0.96733945,102610.0,102600.0,0.00029925]
[1737601059438,1.29003945,102610.0,102600.0,0.00029925]
[1737601059641,0.839765,102600.0,102590.0,0.03931854]
[1737601059842,0.317775,102590.0,102580.0,9.7e-05]
[1737601060051,0.68747229,102590.0,102580.0,0.00024805]
[1737601062118,0.63747229,102590.0,102580.0,0.00024805]
[1737601062291,0.51699729,102590.0,102580.0,0.20731047]
[1737601064066,0.83969729,102590.0,102580.0,0.20731047]
[1737601064294,0.84969729,102590.0,102580.0,0.35731047]
[1737601064499,0.89969729,102590.0,102580.0,0.35731047]
[1737601065170,0.84969729,102590.0,102580.0,0.35731047]
[1737601065372,0.80079729,102590.0,102580.0,0.35731047]
[1737601065575,0.80156849,102590.0,102580.0,1.28221047]
[1737601065833,0.80079729,102590.0,102580.0,1.28221047]
[1737601066039,0.79079729,102590.0,102580.0,1.28221047]
[1737601066195,0.80079729,102590.0,102580.0,1.28221047]
[1737601066420,0.79079729,102590.0,102580.0,1.28221047]
[1737601066593,0.80079729,102590.0,102580.0,1.28250972]
[1737601066774,0.80079729,102590.0,102580.0,1.29210198]
[1737601068915,0.70345,102590.0,102580.0,1.29210198]
[1737601069340,0.74345,102590.0,102580.0,1.29210198]
[1737601069498,0.7442212,102590.0,102580.0,1.29210198]
[1737601069838,0.75345,102590.0,102580.0,0.96250198]
[1737601070017,0.75345,102590.0,102580.0,0.67290198]
[1737601070226,0.75345,102590.0,102580.0,0.66280198]
[1737601070424,0.75345,102590.0,102580.0,0.48510198]
[1737601071077,0.80079729,102590.0,102580.0,0.35760972]
[1737601071281,0.80079729,102590.0,102580.0,0.2480313]
[1737601071642,0.84969729,102590.0,102580.0,0.0980313]
[1737601071842,0.97017229,102590.0,102580.0,0.0005473]
[1737601072022,0.97017229,102590.0,102580.0,0.0980313]
[1737601072729,0.87269729,102590.0,102580.0,0.0980313]
[1737601073088,0.89969729,102590.0,102580.0,0.35760972]
[1737601073423,0.84969729,102590.0,102580.0,0.35760972]
[1737601074647,0.70345,102590.0,102580.0,5.27950972]
[1737601075721,0.69345,102590.0,102580.0,5.27950972]
[1737601075917,0.70345,102590.0,102580.0,5.27950972]
[1737601076196,0.62505,102590.0,102580.0,5.27950972]
[1737601076484,0.67505,102590.0,102580.0,5.27950972]
[1737601076690,0.66505,102590.0,102580.0,5.27950972]
[1737601076962,0.67505,102590.0,102580.0,5.12770972]
[1737601077330,0.67505,102590.0,102580.0,2.62770972]
[1737601077531,0.67505,102590.0,102580.0,0.48060972]
[1737601077965,0.6751925,102590.0,102580.0,0.48060972]
[1737601078359,0.6259637,102590.0,102580.0,0.48060972]
[1737601078916,0.3032637,102590.0,102580.0,0.48060972]
[1737601079949,0.2932637,102590.0,102580.0,0.48060972]
[1737601080131,0.3032637,102590.0,102580.0,0.48060972]
[1737601080333,0.3024925,102590.0,102580.0,0.48060972]
[1737601080538,0.3032637,102590.0,102580.0,0.48060972]
[1737601080740,0.3024925,102590.0,102580.0,0.48060972]
[1737601080942,0.3032637,102590.0,102580.0,0.48060972]
[1737601081135,0.3024925,102590.0,102580.0,0.48060972]
[1737601081342,0.3032637,102590.0,102580.0,0.48060972]
[1737601082208,0.3032637,102590.0,102580.0,0.49029941]
[1737601083999,0.3032637,102590.0,102580.0,0.36729941]
[1737601084206,0.3032637,102590.0,102580.0,5.28919941]
[1737601084550,0.2932637,102590.0,102580.0,5.28919941]
[1737601085964,0.2932637,102590.0,102580.0,5.39877783]
[1737601086371,0.2932637,102590.0,102580.0,5.28919941]
[1737601086647,0.1950175,102590.0,102580.0,5.49612512]
[1737601086820,0.1950175,102590.0,102580.0,5.62392512]
[1737601087037,0.29039586,102610.0,102590.0,0.1692288]
[1737601087338,0.23192286,102610.0,102600.0,5.48684358]
[1737601087522,0.52432286,102610.0,102600.0,5.48586913]
[1737601088038,0.50483186,102610.0,102600.0,5.18369793]
[1737601088242,0.50483186,102610.0,102600.0,4.56386913]
[1737601088243,0.42686786,102610.0,102600.0,4.56386913]
[1737601088539,0.42686786,102610.0,102600.0,3.95656913]
[1737601089372,0.40737686,102610.0,102600.0,3.95656913]
[1737601091319,0.30992186,102610.0,102600.0,3.96637707]
[1737601091871,0.30992186,102610.0,102600.0,4.00860587]
[1737601092094,0.23196386,102610.0,102600.0,4.00860587]
[1737601092383,0.21247486,102610.0,102600.0,4.00860587]
[1737601093155,0.19298586,102610.0,102600.0,4.00860587]
[1737601093284,0.15400786,102610.0,102600.0,4.00860587]
[1737601093491,0.11502986,102610.0,102600.0,4.00860587]
[1737601093859,0.11502986,102610.0,102600.0,3.96637707]
[1737601094194,0.07604786,102610.0,102600.0,3.96637707]
[1737601094393,0.03706586,102610.0,102600.0,3.96637707]
[1737601094622,0.01757486,102610.0,102600.0,3.96637707]
[1737601095134,8.6e-07,102610.0,102600.0,4.00860587]
[1737601095358,8.6e-07,102610.0,102600.0,0.74380587]
[1737601096104,4.6e-07,102620.0,102610.0,0.247456]
[1737601096317,4.6e-07,102620.0,102610.0,5.48586013]
[1737601096512,0.21439446,102620.0,102610.0,0.56396013]
[1737601096963,0.21439446,102620.0,102610.0,5.48586013]
[1737601097155,0.13643846,102620.0,102610.0,5.50508893]
[1737601097350,0.11694946,102620.0,102610.0,5.58608893]
[1737601097557,0.11694946,102620.0,102610.0,3.47756013]
[1737601097798,0.11694946,102620.0,102610.0,3.16968893]
[1737601098378,0.01950446,102620.0,102610.0,3.19268893]
[1737601099186,1.546e-05,102620.0,102610.0,3.19268893]
[1737601099395,1.546e-05,102620.0,102610.0,3.17346013]
[1737601099833,1.546e-05,102620.0,102610.0,3.19268893]
[1737601101657,1.546e-05,102620.0,102610.0,3.24008893]
[1737601103017,0.0001425,102640.0,102630.0,0.247437]
[1737601103257,0.0001425,102640.0,102630.0,5.48584113]
[1737601103393,0.2924425,102640.0,102630.0,5.48584113]
[1737601104214,0.29294581,102640.0,102630.0,5.48584113]
[1737601104623,0.29294581,102640.0,102630.0,3.99364113]
[1737601104825,0.29294581,102640.0,102630.0,0.56394113]
[1737601105049,0.29294581,102640.0,102630.0,4.02914113]
[1737601106447,0.37361701,102640.0,102630.0,3.93179384]
[1737601106657,0.37284581,102640.0,102630.0,3.93179384]
[1737601107210,0.37361701,102640.0,102630.0,3.93179384]
[1737601107409,0.3735283,102640.0,102630.0,3.93179384]
[1737601108872,0.3735283,102640.0,102630.0,3.94167315]
[1737601109200,0.3735283,102640.0,102630.0,3.53947315]
[1737601109466,0.4215283,102640.0,102630.0,3.53947315]
[1737601111150,0.4215283,102640.0,102630.0,2.27327315]
[1737601112421,0.4715283,102640.0,102630.0,0.98467315]
[1737601113446,0.4707571,102640.0,102630.0,0.47647315]
[1737601113892,0.4707571,102640.0,102630.0,0.46659384]
[1737601114096,0.51810439,102640.0,102630.0,0.35701542]
[1737601114301,0.51810439,102640.0,102630.0,0.20701542]
[1737601114850,0.51810439,102640.0,102630.0,0.35701542]
[1737601115425,0.51810439,102640.0,102630.0,0.46659384]
[1737601115812,0.221037,102630.0,102620.0,0.20701842]
[1737601116013,0.221046,102620.0,102610.0,0.20732746]
[1737601116213,0.51324729,102620.0,102610.0,0.20732746]
[1737601116911,0.51324729,102620.0,102610.0,0.35732746]
[1737601117320,0.61069329,102620.0,102610.0,0.35732746]
[1737601117480,0.51324729,102620.0,102610.0,0.20732746]
[1737601117717,0.61069329,102620.0,102610.0,0.20732746]
[1737601118138,0.51324729,102620.0,102610.0,0.35732746]
[1737601120015,0.61069329,102620.0,102610.0,0.25987746]
[1737601120215,0.61069329,102620.0,102610.0,0.00029904]
[1737601120216,0.71361329,102620.0,102610.0,0.00029904]
[1737601120633,0.73279141,102620.0,102610.0,0.00029904]
[1737601121464,0.68279141,102620.0,102610.0,0.00029904]
[1737601121882,0.66279141,102620.0,102610.0,0.00029904]
[1737601122084,0.63979141,102620.0,102610.0,0.20733346]
[1737601123061,0.54234541,102620.0,102610.0,0.20733346]
[1737601123646,0.54230541,102620.0,102610.0,0.20733346]
[1737601124232,0.4166712,102620.0,102610.0,0.35733346]
[1737601124440,0.2930712,102620.0,102610.0,2.29353346]
[1737601129335,0.2923,102620.0,102610.0,2.57565917]
[1737601134185,0.2923,102620.0,102610.0,2.50045917]
[1737601134460,0.2923,102620.0,102610.0,2.39088075]
[1737601134924,0.2923,102620.0,102610.0,2.50045917]
[1737601135074,0.2930712,102620.0,102610.0,2.29353346]
[1737601135247,0.2930712,102620.0,102610.0,1.96063346]
[1737601135893,0.2930712,102620.0,102610.0,1.58373346]
[1737601136153,0.2930712,102620.0,102610.0,1.22923346]
[1737601136373,0.2930712,102620.0,102610.0,1.21643346]
[1737601136596,0.3423,102620.0,102610.0,0.35733346]
[1737601136823,0.4244,102620.0,102610.0,0.20733346]
[1737601137380,0.4244,102620.0,102610.0,0.35733346]
[1737601140161,0.52174729,102620.0,102610.0,0.35733346]
[1737601140610,0.61809329,102620.0,102610.0,0.00029904]
[1737601140995,0.63809329,102620.0,102610.0,0.00029904]
[1737601141611,0.63809329,102620.0,102610.0,0.15029904]
[1737601142103,0.63809329,102620.0,102610.0,0.35733346]
[1737601142530,0.63809329,102620.0,102610.0,0.25987746]
[1737601144426,0.96079329,102620.0,102610.0,0.25987746]
[1737601144578,0.96079329,102620.0,102610.0,0.15029904]
[1737601145296,0.96204729,102620.0,102610.0,0.15029904]
[1737601145475,1.05949329,102620.0,102610.0,0.15029904]
[1737601146103,1.35184329,102620.0,102610.0,0.00029904]
[1737601146450,1.35184329,102620.0,102610.0,0.09775504]
[1737601147185,1.35184329,102620.0,102610.0,0.20733346]
[1737601147587,1.35184329,102620.0,102610.0,0.09775504]
[1737601148566,1.48114329,102620.0,102610.0,0.20733346]
[1737601148883,1.38369729,102620.0,102610.0,0.20733346]
[1737601149130,1.48114329,102620.0,102610.0,0.20733346]
[1737601149301,1.38369729,102620.0,102610.0,0.20733346]
[1737601150400,1.48114329,102620.0,102610.0,0.09775504]
[1737601150641,1.38369729,102620.0,102610.0,0.09775504]
[1737601150912,1.38369729,102620.0,102610.0,0.20733346]
[1737601151158,1.39357729,102620.0,102610.0,0.20733346]
[1737601152723,1.38369729,102620.0,102610.0,0.20733346]
[1737601152951,1.39357729,102620.0,102610.0,0.35733346]
[1737601153171,1.34387729,102620.0,102610.0,0.35733346]
[1737601155143,1.33399729,102620.0,102610.0,0.35733346]
[1737601155343,0.29235,102620.0,102610.0,1.20134068]
[1737601155598,0.29235,102620.0,102610.0,1.07253346]
[1737601155800,0.51929729,102620.0,102610.0,0.35733346]
[1737601156178,0.46929729,102620.0,102610.0,0.35733346]
[1737601156425,0.37195,102620.0,102610.0,0.35733346]
[1737601161359,0.42195,102620.0,102610.0,0.35733346]
[1737601161698,0.37195,102620.0,102610.0,0.35733346]
[1737601163339,0.38183,102620.0,102610.0,0.35733346]
[1737601165573,0.47917729,102620.0,102610.0,0.24775504]
[1737601166607,0.47917729,102620.0,102610.0,0.25749574]
[1737601167130,0.47917729,102620.0,102610.0,0.36707416]
[1737601171120,1.02117729,102620.0,102610.0,0.36707416]
[1737601177517,0.60039449,102620.0,102610.0,0.00029904]
[1737601177749,0.69819449,102620.0,102610.0,0.00029904]
[1737601177981,0.69742329,102620.0,102610.0,0.00029904]
[1737601178167,0.69819449,102620.0,102610.0,0.00029904]
[1737601178328,0.64819449,102620.0,102610.0,0.10987746]
[1737601178672,0.69819449,102620.0,102610.0,0.00029904]
[1737601180265,0.64742329,102620.0,102610.0,0.00029904]
[1737601180615,0.69819449,102620.0,102610.0,0.00029904]
[1737601182457,0.64819449,102620.0,102610.0,0.10987746]
[1737601182839,0.64819449,102620.0,102610.0,0.11961816]
[1737601183041,0.6580449,102620.0,102610.0,0.11961816]
[1737601183242,0.6580449,102620.0,102610.0,0.21707416]
[1737601183769,0.6580449,102620.0,102610.0,0.11961816]
[1737601184101,0.65770451,102620.0,102610.0,0.21707416]
[1737601184451,0.65693331,102620.0,102610.0,0.21707416]
[1737601184664,0.5266369,102620.0,102610.0,0.21707416]
[1737601187019,0.4689569,102620.0,102610.0,0.21707416]
[1737601187182,0.4787969,102620.0,102610.0,0.21707416]
[1737601187408,0.3991969,102620.0,102610.0,0.21707416]
[1737601188899,1.1416141,102620.0,102610.0,0.10749574]
[1737601189097,1.1416141,102620.0,102610.0,0.09775504]
[1737601189757,1.0433969,102620.0,102610.0,0.09775504]
[1737601189957,1.0433969,102620.0,102610.0,0.20733346]
[1737601190133,1.1408429,102620.0,102610.0,0.20733346]
[1737601190687,1.1416141,102620.0,102610.0,0.20733346]
[1737601190867,1.1408429,102620.0,102610.0,0.20733346]
[1737601191865,1.0203969,102620.0,102610.0,0.20733346]
[1737601193460,1.1416141,102620.0,102610.0,0.00029904]
[1737601194579,1.1916141,102620.0,102610.0,0.00029904]